fUSD/lending_fUSD_20240801
["ID","MTS","AMOUNT","RATE_DAILY","PERIOD"]
[333781423,1722490232983,-627.0,0.00010986,2]
[333781424,1722490232997,-1000.0,0.0001099,2]
[333781425,1722490233007,-1000.0,0.0001099,2]
[333781426,1722490233017,-1000.0,0.0001099,2]
[333781427,1722490233029,-1000.0,0.0001099,2]
[333781428,1722490233040,-1000.0,0.0001099,2]
[333781429,1722490233050,-1000.0,0.0001099,2]
[333781430,1722490233060,-1000.0,0.0001099,2]
[333781431,1722490233071,-1169.0,0.0001099,3]
[333781432,1722490233081,-1000.0,0.0001099,3]
[333781433,1722490233090,-1000.0,0.0001099,3]
[333781434,1722490233101,-1000.0,0.0001099,2]
[333781435,1722490233111,-1000.0,0.0001099,2]
[333781436,1722490233120,-1000.0,0.0001099,2]
[333781437,1722490233130,-1000.0,0.0001099,2]
[333781438,1722490233140,-1002.0,0.0001099,2]
[333781439,1722490233150,-1000.0,0.0001099,3]
[333781440,1722490233159,-1004.0,0.0001099,2]
[333781441,1722490233169,-1000.0,0.0001099,2]
[333781442,1722490233179,-1000.0,0.0001099,3]
[333781443,1722490233189,-1000.0,0.0001099,2]
[333781444,1722490233199,-3366.8841542,0.00010998,2]
[333781445,1722490233209,-155.019981,0.00010998,2]
[333781446,1722490233218,-12873.618361,0.00010998,2]
[333781447,1722490233228,-11487.9860047,0.00010998,2]
[333781448,1722490233239,-608.3483445,0.00010998,2]
[333781449,1722490233249,-1059.0917185,0.00010998,2]
[333781450,1722490233259,-476.75994966,0.00010999,2]
[333781451,1722490233269,-1000.0,0.00010999,2]
[333781452,1722490233279,-508.0,0.00010999,2]
[333781453,1722490233288,-156326.78545285,0.00011,2]
[333781454,1722490233330,-2259.15910693,0.00011,2]
[333781455,1722490233510,-660.81574573,0.00011,2]
[333781456,1722490233521,-948.79287799,0.00011,2]
[333781457,1722490233535,-9811.35758187,0.00011,2]
[333781458,1722490233597,-408.85640308,0.00011,2]
[333781459,1722490233609,-19222.02284726,0.00011,2]
[333781460,1722490233660,-1100.4363308,0.00011,2]
[333781461,1722490233671,-16047.47808545,0.00011,2]
[333781463,1722490238499,-150.0,0.0001068,2]
[333781464,1722490238509,-12383.7322227,0.00011,2]
[333781465,1722490238521,-5038.36966038,0.00011,2]
[333781466,1722490238535,-1629.96591577,0.00011,2]
[333781473,1722490238807,-317.83996644,0.00010999,2]
[333781474,1722490238817,-3844.71189217,0.00011,2]
[333781475,1722490238828,-3162.08334904,0.00011,2]
[333781476,1722490238839,-4018.27120797,0.00011,2]
[333781477,1722490238851,-6433.6416,0.00011,2]
[333781478,1722490238898,-653.55537946,0.00011,2]
[333781479,1722490238910,-1028.52477935,0.00011,2]
[333781480,1722490238921,-666.77284336,0.00011,2]
[333781481,1722490238932,-11902.30971465,0.00011,2]
[333781482,1722490238959,-445.42957939,0.00011,2]
[333781483,1722490239009,-1866.37462054,0.00011,2]
[333781486,1722490240339,-302.85004585,0.00011,2]
[333781487,1722490240357,-312.60966571,0.00011,2]
[333781488,1722490240404,425.56217622,7.8e-05,2]
[333781489,1722490240465,-264441.94124075,0.00011,2]
[333781490,1722490240488,-635.20510333,0.00011,2]
[333781491,1722490240507,-3201.1185,0.00011,2]
[333781492,1722490240528,-2209.01181164,0.00011,2]
[333781493,1722490240545,-317.93,0.00011,2]
[333781499,1722490240715,-476.12358189,0.00011,2]
[333781661,1722490243299,-211.89331096,0.00010999,2]
[333781663,1722490243311,-273.41168904,0.00011,2]
[333781667,1722490243522,-410826.72158251,0.00011,2]
[333781668,1722490243541,-470.46019944,0.00011,2]
[333781669,1722490243582,-562.53224013,0.00011,2]
[333781768,1722490247180,-227.57356757,9.454e-05,2]
[333781770,1722490247189,-4303.32066043,0.00011,2]
[333781784,1722490247335,-1371.36525986,0.00011,2]
[333781786,1722490247347,-427.82746901,0.00011,2]
[333781791,1722490247385,-20527.12694412,0.00011,2]
[333781939,1722491432378,-1023.09,8.219e-05,2]
[333781940,1722491432389,-188.07,9.62e-05,2]
[333781941,1722491432399,-401.6018072,9.62e-05,2]
[333781942,1722491432481,-462.34378069,9.62e-05,2]
[333781943,1722491432528,-1919.22464758,9.62e-05,2]
[333781963,1722491439688,-657.67578749,9.62e-05,2]
[333781964,1722491439698,-250.0,9.671e-05,2]
[333781965,1722491439708,-1933.51,9.721e-05,2]
[333781966,1722491439718,-329.37,9.729e-05,2]
[333781967,1722491439727,-753.05,9.772e-05,2]
[333781968,1722491439736,-1000.0,9.776e-05,2]
[333781969,1722491439745,-150.0,9.781e-05,2]
[333781970,1722491439755,-374.95,9.818e-05,2]
[333781971,1722491439764,-154.29,9.857e-05,2]
[333781972,1722491439773,-1395.90213598,9.95e-05,2]
[333781973,1722491439784,-590.33786402,9.95e-05,2]
[333781974,1722491439793,-1000.0,0.0001,10]
[333781975,1722491439802,-5914.096465,0.0001,2]
[333781976,1722491439811,-211.93,0.00010057,2]
[333781977,1722491439822,-160.88,0.000101,2]
[333781978,1722491439834,-160.88,0.00010117,2]
[333781979,1722491439845,-160.88,0.00010134,2]
[333781980,1722491439854,-160.88,0.00010151,2]
[333781981,1722491439863,-174.63,0.00010197,2]
[333781982,1722491439873,-749.67463773,0.0001046,2]
[333781983,1722491439886,-273.41536227,0.0001046,2]
[333781984,1722491439896,-575.553,0.0001078,2]
[333781985,1722491439907,-188.07,0.00010822,2]
[333781986,1722491439917,-155.89614615,0.000109,2]
[333781987,1722491439927,-24.50707158,0.000109,2]
[333781988,1722491439940,-975.49292842,0.000109,2]
[333781989,1722491439951,-1000.0,0.0001097,2]
[333781990,1722491439962,-1000.0,0.0001097,2]
[333781991,1722491439972,-4.69615142,0.0001097,2]
[333781992,1722491439984,-495.30384858,0.0001097,2]
[333781993,1722491439993,-500.44765626,0.0001097,2]
[333781994,1722491440004,-201.7502356,0.00010997,2]
[333781995,1722491440013,-857.1438313,0.00010997,2]
[333781996,1722491440022,-150.0,0.00010997,2]
[333781997,1722491440031,-944.7183095,0.00010997,2]
[333781998,1722491440041,-664.6293754,0.00010997,2]
[333781999,1722491440051,-522.7355266,0.00010997,2]
[333782000,1722491440060,-1000.0,0.00010997,2]
[333782001,1722491440070,-211.89331096,0.00010999,2]
[333782002,1722491440079,-1894.1825218,0.00010999,2]
[333782003,1722491440203,-2891.5981116,0.00010999,2]
[333782004,1722491440215,-27906.92999203,0.00010999,2]
[333782005,1722491440226,-13565.0,0.00010999,2]
[333782006,1722491440238,-24528.90035,0.00010999,2]
[333782007,1722491440249,-54170.55,0.00010999,2]
[333782008,1722491440262,-9553.154996,0.00010999,2]
[333782009,1722491440274,-9084.2900005,0.00010999,2]
[333782010,1722491440287,-13724.235,0.00010999,2]
[333782011,1722491440299,-1384.75,0.00010999,2]
[333782012,1722491440310,-5915.5,0.00010999,2]
[333782013,1722491440322,-321.085,0.00010999,2]
[333782014,1722491440386,-1613.18836489,0.00010999,2]
[333782015,1722491440398,-1287.75381043,0.00010999,2]
[333782037,1722491440980,-181619.07383232,0.00010999,2]
[333782040,1722491440992,-557.38108761,0.00010999,2]
[333782045,1722491441036,-645.18180464,0.00010999,2]
[333782047,1722491441047,-1504.86754232,0.00010999,2]
[333782050,1722491441067,-3681.27778261,0.00010999,2]
[333782052,1722491441077,-425.17820002,0.00010999,2]
[333782055,1722491441094,-670.37,0.00010999,2]
[333782058,1722491441114,-389.44550813,0.00010999,2]
[333782063,1722491441150,-428.903475,0.00010999,2]
[333782307,1722491443646,-5367.862614,9.572e-05,2]
[333782309,1722491443655,-1098.84002891,0.00010999,2]
[333782311,1722491443667,-310.32372967,0.00010999,2]
[333782313,1722491443678,-462.7399431,0.00010999,2]
[333782329,1722491443825,-410826.72158251,0.00010999,2]
[333782331,1722491443840,-15914.47074738,0.00010999,2]
[333782337,1722491443893,-1609.025,0.00010999,2]
[333782592,1722491446583,-3109.41954188,0.00010999,2]
[333782596,1722491446621,-6797.49091278,0.00010999,2]
[333782601,1722491446659,-62650.02224853,0.00010999,2]
[333782606,1722491446695,-4344.23249983,0.00010999,2]
[333782620,1722491446824,-800.32714118,0.00010999,2]
[333782623,1722491446838,-6420.2,0.00010999,2]
[333782626,1722491446866,-1087.15276736,0.00010999,2]
[333782851,1722492410596,190.15,0.0001337,30]
[333782873,1722492631595,-991.35,8.219e-05,2]
[333782875,1722492631606,-10.20012815,9.212e-05,2]
[333782877,1722492631617,-636.18805785,9.212e-05,2]
[333782879,1722492631627,-300.0,9.259e-05,2]
[333782880,1722492631637,-70.88781489,9.259e-05,2]
[333782881,1722492631648,-229.11218511,9.259e-05,2]
[333782882,1722492631657,-890.98859489,9.26e-05,2]
[333782883,1722492631684,-1696.99869046,9.26e-05,2]
[333782884,1722492631726,-1660.29818461,9.26e-05,2]
[333782885,1722492631738,-19641.71453004,9.26e-05,2]
[333782886,1722492631748,-154.29,9.267e-05,2]
[333782887,1722492631758,-801.84,9.272e-05,2]
[333782888,1722492631767,-484.5,9.281e-05,2]
[333782889,1722492631776,-196.02,9.33e-05,2]
[333782890,1722492631786,-825.06,9.36e-05,2]
[333782891,1722492631795,-169.54,9.428e-05,2]
[333782892,1722492631805,-250.0,9.431e-05,2]
[333782893,1722492631814,-304.62,9.431e-05,2]
[333782894,1722492631823,-406.11,9.474e-05,2]
[333782895,1722492631833,-500.0,9.507e-05,2]
[333782896,1722492631842,-182.29,9.977e-05,2]
[333782897,1722492631851,-182.29,9.98e-05,2]
[333782898,1722492631860,-182.29,9.982e-05,2]
[333782899,1722492631869,-182.29,9.985e-05,2]
[333782900,1722492631879,-182.29,9.988e-05,2]
[333782901,1722492631888,-182.29,9.99e-05,2]
[333782902,1722492631897,-182.29,9.993e-05,2]
[333782903,1722492631906,-299.99,9.994e-05,2]
[333782904,1722492631916,-182.29,9.995e-05,2]
[333782905,1722492631925,-182.29,9.998e-05,2]
[333782906,1722492631934,-487.1,0.0001,2]
[333782907,1722492631943,-249.4,0.0001,2]
[333782908,1722492631953,-182.29,0.00010001,2]
[333782909,1722492631962,-150.0,0.00010003,2]
[333782910,1722492631971,-1000.0,0.00010003,2]
[333782911,1722492631981,-182.29,0.00010003,2]
[333782912,1722492631990,-182.29,0.00010006,2]
[333782913,1722492631999,-182.29,0.00010009,2]
[333782914,1722492632008,-182.29,0.00010011,2]
[333782915,1722492632017,-182.29,0.00010014,2]
[333782916,1722492632026,-182.29,0.00010017,2]
[333782917,1722492632035,-2562.435,0.00010017,2]
[333782918,1722492632045,-182.29,0.00010019,2]
[333782919,1722492632054,-182.29,0.00010022,2]
[333782920,1722492632063,-182.29,0.00010024,2]
[333782921,1722492632072,-182.29,0.00010027,2]
[333782922,1722492632082,-198.07210199,0.000101,2]
[333782923,1722492632091,-155.05644401,0.000101,2]
[333782925,1722492632102,-200.07355181,0.000101,2]
[333782928,1722492632112,-158.05753647,0.000101,2]
[333782929,1722492632122,-199.67268462,0.000101,2]
[333782931,1722492632131,-152.05563848,0.000101,2]
[333782933,1722492632140,-200.07283095,0.000101,2]
[333782935,1722492632149,-200.07283015,0.000101,2]
[333782937,1722492632159,-300.10924769,0.000101,2]
[333782938,1722492632169,-150.05507142,0.000101,2]
[333782939,1722492632178,-200.0,0.000101,2]
[333782940,1722492632187,-420.0,0.00010185,2]
[333782941,1722492632197,-991.35,0.00010439,2]
[333782942,1722492632212,-169.54,0.00010607,2]
[333782943,1722492632544,-187.924993,0.00010635,2]
[333782944,1722492632554,-1000.0,0.000107,2]
[333782945,1722492632564,-170.047915,0.0001078,2]
[333782946,1722492632573,-1433.7035,0.000108,2]
[333782947,1722492632583,-3010.4156,0.000108,2]
[333782948,1722492632592,-3354.4,0.000108,2]
[333782949,1722492632602,-851.4223,0.0001087,2]
[333782950,1722492632612,-441.7725,0.00010899,2]
[333782951,1722492632621,-14138.7799,0.00010899,2]
[333782952,1722492632631,-8229.3478,0.00010899,2]
[333782953,1722492632641,-153.05898662,0.00010899,2]
[333782954,1722492632650,-153.05898662,0.00010899,2]
[333782955,1722492632659,-153.05898662,0.000109,2]
[333782956,1722492632669,-601.5744,0.000109,2]
[333782957,1722492632678,-11494.3431,0.000109,2]
[333782958,1722492632688,-82514.304,0.000109,2]
[333782959,1722492632698,-1000.0,0.000109,2]
[333782960,1722492632707,-10000.0,0.000109,2]
[333782961,1722492632717,-6900.0,0.000109,2]
[333782962,1722492632726,-177.35582664,0.000109,2]
[333782963,1722492632736,-153.05898662,0.000109,2]
[333782964,1722492632745,-2651.60229332,0.000109,2]
[333782965,1722492632755,-1000.0,0.000109,2]
[333782966,1722492632764,-500.0,0.00010912,2]
[333782967,1722492632774,-568.095,0.00010938,2]
[333782968,1722492632784,-568.095,0.00010938,2]
[333782969,1722492632793,-568.095,0.00010938,2]
[333782970,1722492632803,-568.095,0.00010938,2]
[333782971,1722492632812,-568.095,0.00010938,2]
[333782972,1722492632822,-568.095,0.00010938,2]
[333782973,1722492632831,-568.095,0.00010938,2]
[333782974,1722492632840,-568.095,0.00010938,2]
[333782975,1722492632850,-568.095,0.00010938,2]
[333782976,1722492632861,-568.095,0.00010938,2]
[333782977,1722492632870,-150.0,0.00010959,2]
[333782978,1722492632881,-3290.79,0.00010959,2]
[333782979,1722492632891,-250.0,0.00010959,2]
[333782980,1722492632900,-171.69,0.00010959,2]
[333782981,1722492632909,-858.5,0.00010959,2]
[333782982,1722492632918,-900.27606137,0.0001097,2]
[333782983,1722492632927,-5805.87554564,0.00010989,2]
[333782984,1722492632937,-154.16,0.00010989,2]
[333782985,1722492632946,-5805.87554564,0.0001099,2]
[333782986,1722492632956,-154.16,0.0001099,2]
[333782987,1722492632966,-5805.87554564,0.0001099,2]
[333782988,1722492632976,-154.16,0.0001099,2]
[333782989,1722492632986,-154.16,0.0001099,2]
[333782990,1722492632995,-154.16,0.0001099,2]
[333782991,1722492633005,-154.16,0.0001099,2]
[333782992,1722492633015,-154.16,0.0001099,2]
[333782993,1722492633024,-660.4216151,0.00010998,2]
[333782994,1722492633034,-12722.588731,0.00010998,2]
[333782995,1722492633043,-1405.6132754,0.00010998,2]
[333782996,1722492633053,-29258.2522168,0.00010998,2]
[333782997,1722492633063,-3908.3671533,0.00010998,2]
[333782998,1722492633073,-246.9515269,0.00010998,2]
[333782999,1722492633082,-413.7741919,0.00010998,2]
[333783000,1722492633092,-500.0,0.00010999,2]
[333783001,1722492633103,-500.0,0.00010999,2]
[333783002,1722492633114,-169.55534302,0.00010999,2]
[333783003,1722492633125,-500.0,0.00010999,2]
[333783004,1722492633135,-194.50597691,0.00010999,2]
[333783005,1722492633145,-500.0,0.00010999,2]
[333783006,1722492633154,-500.0,0.00010999,2]
[333783007,1722492633165,-500.0,0.00010999,2]
[333783008,1722492633175,-500.0,0.00010999,2]
[333783009,1722492633185,-525.0,0.00010999,2]
[333783010,1722492633195,-500.0,0.00010999,2]
[333783011,1722492633208,-500.0,0.00010999,2]
[333783012,1722492633217,-525.0,0.00010999,2]
[333783013,1722492633227,-500.0,0.00010999,2]
[333783014,1722492633237,-157.70483192,0.00010999,2]
[333783015,1722492633247,-500.0,0.00010999,2]
[333783016,1722492633257,-500.0,0.00010999,2]
[333783017,1722492633267,-500.0,0.00010999,2]
[333783018,1722492633278,-500.0,0.00010999,2]
[333783019,1722492633289,-500.0,0.00010999,2]
[333783020,1722492633298,-500.0,0.00010999,2]
[333783021,1722492633308,-500.0,0.00010999,2]
[333783022,1722492633317,-500.0,0.00010999,2]
[333783023,1722492633327,-500.0,0.00010999,2]
[333783024,1722492633337,-500.0,0.00010999,2]
[333783025,1722492633346,-313.55760295,0.00010999,2]
[333783026,1722492633359,-500.0,0.00010999,2]
[333783027,1722492633368,-500.0,0.00010999,2]
[333783028,1722492633378,-500.0,0.00010999,2]
[333783029,1722492633388,-500.0,0.00010999,2]
[333783030,1722492633398,-500.0,0.00010999,2]
[333783031,1722492633408,-500.0,0.00010999,2]
[333783032,1722492633418,-500.0,0.00010999,2]
[333783033,1722492633428,-500.0,0.00010999,2]
[333783034,1722492633438,-500.0,0.00010999,2]
[333783035,1722492633448,-500.0,0.00010999,2]
[333783036,1722492633458,-500.0,0.00010999,2]
[333783037,1722492633467,-500.0,0.00010999,2]
[333783038,1722492633477,-500.0,0.00010999,2]
[333783039,1722492633487,-500.0,0.00010999,2]
[333783040,1722492633496,-500.0,0.00010999,2]
[333783041,1722492633506,-500.0,0.00010999,2]
[333783042,1722492633516,-501.7427753,0.00010999,2]
[333783043,1722492633526,-500.0,0.00010999,2]
[333783044,1722492633535,-339.99418422,0.00010999,2]
[333783045,1722492633545,-500.0,0.00010999,2]
[333783046,1722492633555,-500.0,0.00010999,2]
[333783047,1722492633565,-500.0,0.00010999,2]
[333783048,1722492633574,-500.0,0.00010999,2]
[333783049,1722492633584,-467.92208773,0.00010999,2]
[333783050,1722492633594,-500.0,0.00010999,2]
[333783051,1722492633606,-500.0,0.00010999,2]
[333783052,1722492633616,-500.0,0.00010999,2]
[333783053,1722492633625,-500.0,0.00010999,2]
[333783054,1722492633635,-500.0,0.00010999,2]
[333783055,1722492633646,-500.0,0.00010999,2]
[333783056,1722492633656,-600.0,0.00010999,2]
[333783057,1722492633666,-500.0,0.00010999,2]
[333783058,1722492633676,-500.0,0.00010999,2]
[333783059,1722492633685,-500.0,0.00010999,2]
[333783060,1722492633695,-500.0,0.00010999,2]
[333783061,1722492633705,-500.0,0.00010999,2]
[333783062,1722492633714,-500.0,0.00010999,2]
[333783063,1722492633723,-500.0,0.00010999,2]
[333783064,1722492633733,-500.0,0.00010999,2]
[333783065,1722492633742,-500.0,0.00010999,2]
[333783066,1722492633752,-500.0,0.00010999,2]
[333783067,1722492633761,-392534.09956642,0.00010999,2]
[333783068,1722492633775,-12299.07358445,0.00010999,2]
[333783069,1722492633784,-211.89331095,0.00010999,2]
[333783070,1722492633793,-2000.0,0.00010999,2]
[333783071,1722492633802,-200.0,0.00010999,2]
[333783072,1722492633811,-3000.0,0.00010999,2]
[333783073,1722492633821,-2255.80117121,0.00010999,2]
[333783074,1722492633830,-1576.0,0.00010999,2]
[333783075,1722492633839,-1576.0,0.00010999,2]
[333783076,1722492633848,-1576.0,0.00010999,2]
[333783077,1722492633859,-1576.0,0.00010999,2]
[333783078,1722492633868,-1576.0,0.00010999,2]
[333783079,1722492633878,-1576.0,0.00010999,2]
[333783080,1722492633887,-1576.0,0.00010999,2]
[333783081,1722492633897,-1576.0,0.00010999,2]
[333783082,1722492633906,-1576.0,0.00010999,2]
[333783083,1722492633915,-1576.0,0.00010999,2]
[333783084,1722492633925,-500.0,0.00010999,2]
[333783085,1722492633934,-454.27331334,0.00010999,2]
[333783086,1722492633944,-500.0,0.00010999,2]
[333783087,1722492633953,-300.0,0.00010999,2]
[333783088,1722492633963,-431.35346264,0.00010999,2]
[333783089,1722492633972,-520.205468,0.00010999,2]
[333783090,1722492633981,-57892.82452177,0.00011,2]
[333783091,1722492633993,-450.0,0.00011,2]
[333783092,1722492634004,-791.24822385,0.00011,2]
[333783093,1722492634027,-32044.8896159,0.00011,2]
[333783094,1722492634039,-2977.63233919,0.00011,2]
[333783095,1722492634050,-1017.04312744,0.00011,2]
[333783096,1722492634073,-6654.8,0.00011,2]
[333783097,1722492634097,-422.57359696,0.00011,2]
[333783098,1722492634109,-2757.28875659,0.00011,2]
[333783129,1722492639421,-150.78774881,0.00010996,2]
[333783130,1722492639431,-603.15099524,0.00010997,2]
[333783131,1722492639440,-189.00696615,0.00010998,2]
[333783132,1722492639451,-27.04670105,0.00010998,2]
[333783133,1722492639460,-2185.28484395,0.00011,2]
[333783134,1722492639472,-573.13147782,0.00011,2]
[333783135,1722492639483,-2217.68450447,0.00011,2]
[333783136,1722492639494,-729.17517403,0.00011,2]
[333783137,1722492639506,-475.82133345,0.00011,2]
[333783139,1722492639518,-2879.43368562,0.00011,2]
[333783141,1722492639529,-6810.39788908,0.00011,2]
[333783143,1722492639540,-48712.65287047,0.00011,2]
[333783145,1722492639551,-1153.0,0.00011,2]
[333783146,1722492639562,-5486.590707,0.00011,2]
[333783147,1722492639573,-424.88308538,0.00011,2]
[333783148,1722492639584,-52593.96187235,0.00011,2]
[333783149,1722492639595,-65350.49890392,0.00011,2]
[333783150,1722492639607,-519.980028,0.00011,2]
[333783151,1722492639619,-1999.05404821,0.00011,2]
[333783152,1722492639629,-2253.52196766,0.00011,2]
[333783153,1722492639640,-775.44461026,0.00011,2]
[333783154,1722492639651,-479.23585153,0.00011,2]
[333783155,1722492639663,-500.0,0.00011,2]
[333783156,1722492639673,-1856.5631075,0.00011,2]
[333783157,1722492639684,-1656.96940033,0.00011,2]
[333783158,1722492639695,-2109.73310926,0.00011,2]
[333783159,1722492639706,-1151.7587563,0.00011,2]
[333783160,1722492639718,-6874.19597628,0.00011,2]
[333783161,1722492639728,-7247.88125866,0.00011,2]
[333783162,1722492639739,-7173.35954135,0.00011,2]
[333783163,1722492639750,-9901.01985224,0.00011,2]
[333783164,1722492639761,-5085.22599903,0.00011,2]
[333783165,1722492639771,-5726.34454775,0.00011,2]
[333783166,1722492639782,-874.9,0.00011,2]
[333783167,1722492639793,-1803.52865084,0.00011,2]
[333783168,1722492639805,-1949.91783652,0.00011,2]
[333783169,1722492639817,-321.945,0.00011,2]
[333783170,1722492639828,-1290.70614797,0.00011,2]
[333783171,1722492639839,-3450.49798637,0.00011,2]
[333783172,1722492639850,-15859.54,0.00011,2]
[333783173,1722492639861,-300.32,0.00011,2]
[333783174,1722492639872,-3163.29177813,0.00011,2]
[333783175,1722492639883,-1141.64818358,0.00011,2]
[333783176,1722492639894,-586.27968751,0.00011,2]
[333783177,1722492639906,-320.03674283,0.00011,2]
[333783178,1722492639918,-810.16228092,0.00011,2]
[333783179,1722492639931,-1391.18950319,0.00011,2]
[333783180,1722492639943,-673.40945464,0.00011,2]
[333783181,1722492639954,-11377.15493044,0.00011,2]
[333783187,1722492640495,-18405.990843,0.00011,2]
[333783188,1722492640506,-7480.8599,0.00011,2]
[333783189,1722492640517,-8194.3,0.00011,2]
[333783190,1722492640528,-332630.0,0.00011,2]
[333783191,1722492640539,-7104.61058235,0.00011,2]
[333783192,1722492640559,-519778.97945752,0.00011,2]
[333783193,1722492640569,-150.0,0.00011,2]
[333783194,1722492640578,-1896.367,0.00011,2]
[333783195,1722492640587,-1668.651,0.00011,2]
[333783196,1722492640597,-213.488,0.00011,2]
[333783197,1722492640607,-815.158,0.00011,2]
[333783198,1722492640617,-1327.928,0.00011,2]
[333783199,1722492640627,-519.644,0.00011,2]
[333783200,1722492640636,-1734.248,0.00011,2]
[333783201,1722492640645,-5890.79,0.00011,2]
[333783202,1722492640654,-247.578,0.00011,2]
[333783203,1722492640663,-1686.197,0.00011,2]
[333783204,1722492640672,-5121.0,0.00011,2]
[333783205,1722492640681,-202.521,0.00011,2]
[333783206,1722492640691,-2397.84753802,0.00011,2]
[333783207,1722492640700,-1002464.30665552,0.00011,2]
[333783208,1722492640709,-201.0,0.00011,2]
[333783209,1722492640719,-201.0,0.00011,2]
[333783210,1722492640728,-201.0,0.00011,2]
[333783211,1722492640737,-201.0,0.00011,2]
[333783212,1722492640746,-201.0,0.00011,2]
[333783213,1722492640755,-201.0,0.00011,2]
[333783214,1722492640764,-201.0,0.00011,2]
[333783215,1722492640773,-201.0,0.00011,2]
[333783216,1722492640784,-201.0,0.00011,2]
[333783217,1722492640795,-201.0,0.00011,2]
[333783218,1722492640806,-201.0,0.00011,2]
[333783219,1722492640815,-201.0,0.00011,2]
[333783220,1722492640825,-2000.0,0.00011,2]
[333783221,1722492640835,-2000.0,0.00011,2]
[333783222,1722492640845,-2000.0,0.00011,2]
[333783223,1722492640855,-215.0,0.00011,2]
[333783224,1722492640866,-215.0,0.00011,2]
[333783225,1722492640875,-215.0,0.00011,2]
[333783226,1722492640885,-3167466.35475458,0.00011,2]
[333783227,1722492640896,-1117278.7226802,0.00011,2]
[333783228,1722492640906,-250.0,0.00011,2]
[333783229,1722492640917,-1183010.99887171,0.00011,2]
[333783230,1722492640929,-91000.0,0.00011,2]
[333783231,1722492640941,-201.0,0.00011,2]
[333783232,1722492640950,-201.0,0.00011,2]
[333783233,1722492640960,-201.0,0.00011,2]
[333783234,1722492640970,-2730549.27056127,0.00011,2]
[333783235,1722492640979,-2623701.14825151,0.00011,2]
[333783236,1722492640988,-508.20428948,0.00011,2]
[333783237,1722492640998,-2564178.89271444,0.00011,2]
[333783238,1722492641007,-854853.9517208,0.00011,2]
[333783239,1722492641017,-250.05260447,0.00011,2]
[333783240,1722492641026,-352.41553241,0.00011,2]
[333783241,1722492641035,-5800.0,0.00011,2]
[333783242,1722492641044,-500.0,0.00011,2]
[333783243,1722492641053,-151.0,0.00011,2]
[333783244,1722492641062,-151.0,0.00011,2]
[333783245,1722492641072,-151.0,0.00011,2]
[333783246,1722492641081,-151.0,0.00011,2]
[333783247,1722492641090,-151.0,0.00011,2]
[333783248,1722492641100,-151.0,0.00011,2]
[333783249,1722492641111,-151.0,0.00011,2]
[333783250,1722492641120,-151.0,0.00011,2]
[333783251,1722492641131,-151.0,0.00011,2]
[333783252,1722492641141,-151.0,0.00011,2]
[333783253,1722492641150,-151.0,0.00011,2]
[333783254,1722492641161,-166.050247,0.00011,2]
[333783255,1722492641171,-5800.0,0.00011,2]
[333783256,1722492641180,-191.4,0.00011,2]
[333783257,1722492641191,-35000.0,0.00011,2]
[333783258,1722492641203,-151.0,0.00011,2]
[333783259,1722492641215,-151.0,0.00011,2]
[333783260,1722492641224,-151.0,0.00011,2]
[333783261,1722492641232,-179.598368,0.00011,2]
[333783262,1722492641243,-2000.0,0.00011,2]
[333783263,1722492641252,-200.0,0.00011,2]
[333783264,1722492641262,-151.0,0.00011,2]
[333783265,1722492641271,-151.0,0.00011,2]
[333783266,1722492641283,-151.0,0.00011,2]